lending/lending_fUSD_20260206
["ID","MTS","AMOUNT","RATE_DAILY","PERIOD"]
[404674743,1770414841880,150.0,8.427e-05,2]
[404674744,1770414843439,300.0,8.427e-05,2]
[404674745,1770414845910,179.18237986,8.427e-05,2]
[404674746,1770414859723,500.0,8.427e-05,2]
[404674747,1770414859756,500.0,8.427e-05,2]
[404674748,1770414859790,500.0,8.427e-05,2]
[404674749,1770414859825,500.0,8.427e-05,2]
[404674750,1770414859864,500.0,8.427e-05,2]
[404674751,1770414859900,500.0,8.427e-05,2]
[404674752,1770414859943,500.0,8.427e-05,2]
[404674753,1770414859976,500.0,8.427e-05,2]
[404674754,1770414860013,500.0,8.427e-05,2]
[404674755,1770414860047,320.82762014,8.427e-05,2]
[404674756,1770414860071,179.17237986,8.427e-05,2]
[404674757,1770414860108,500.0,8.427e-05,2]
[404674758,1770414860150,500.0,8.427e-05,2]
[404674759,1770414860185,500.0,8.427e-05,2]
[404674760,1770414860452,500.0,8.427e-05,2]
[404674761,1770414860484,500.0,8.427e-05,2]
[404674762,1770414860518,500.0,8.427e-05,2]
[404674763,1770414860550,500.0,8.427e-05,2]
[404674764,1770414860582,500.0,8.427e-05,2]
[404674765,1770414860614,500.0,8.427e-05,2]
[404674766,1770414860645,320.83762014,8.427e-05,2]
[404674767,1770414860667,179.16237986,8.427e-05,2]
[404674768,1770414860698,500.0,8.427e-05,2]
[404674769,1770414860728,500.0,8.427e-05,2]
[404674770,1770414860764,500.0,8.427e-05,2]
[404674771,1770414860796,500.0,8.427e-05,2]
[404674772,1770414860830,500.0,8.427e-05,2]
[404674773,1770414860861,500.0,8.427e-05,2]
[404674774,1770414860896,500.0,8.427e-05,2]
[404674775,1770414860929,500.0,8.427e-05,2]
[404674776,1770414860965,500.0,8.427e-05,2]
[404674777,1770414860998,320.84762014,8.427e-05,2]
[404674778,1770414861025,179.15237986,8.427e-05,2]
[404674779,1770414861057,500.0,8.427e-05,2]
[404674780,1770414861089,500.0,8.427e-05,2]
[404674781,1770414861121,500.0,8.427e-05,2]
[404674782,1770414861156,500.0,8.427e-05,2]
[404674783,1770414861188,500.0,8.427e-05,2]
[404674784,1770414861225,500.0,8.427e-05,2]
[404674785,1770414861257,500.0,8.427e-05,2]
[404674786,1770414861305,500.0,8.427e-05,2]
[404674787,1770414861345,422.27092332,8.427e-05,2]
[404674788,1770414861378,398.58669682,8.427e-05,2]
[404674789,1770414861402,101.41330318,8.427e-05,2]
[404674790,1770414861436,500.0,8.427e-05,2]
[404674791,1770414868444,500.0,8.328e-05,2]
[404674792,1770414871949,500.0,8.427e-05,2]
[404674793,1770414871983,500.0,8.427e-05,2]
[404674794,1770414872015,500.0,8.427e-05,2]
[404674795,1770414872048,500.0,8.427e-05,2]
[404674796,1770414872084,500.0,8.427e-05,2]
[404674797,1770414872129,500.0,8.427e-05,2]
[404674798,1770414872162,500.0,8.427e-05,2]
[404674799,1770414872194,398.59669682,8.427e-05,2]
[404674800,1770414872219,101.40330318,8.427e-05,2]
[404674801,1770414872252,500.0,8.427e-05,2]
[404674802,1770414872285,500.0,8.427e-05,2]
[404674803,1770414872317,500.0,8.427e-05,2]
[404674804,1770414872350,500.0,8.427e-05,2]
[404674805,1770414872381,500.0,8.427e-05,2]
[404674806,1770414872413,500.0,8.427e-05,2]
[404674807,1770414872449,500.0,8.427e-05,2]
[404674808,1770414872480,500.0,8.427e-05,2]
[404674809,1770414872519,500.0,8.427e-05,2]
[404674810,1770414872552,398.60669682,8.427e-05,2]
[404674811,1770414872574,101.39330318,8.427e-05,2]
[404674812,1770414872606,500.0,8.427e-05,2]
[404674813,1770414873963,500.0,8.401e-05,2]
[404674814,1770414874519,150.0,8.401e-05,2]
[404674815,1770414901206,300.0,8.427e-05,2]
[404674816,1770414901339,300.0,8.427e-05,2]
[404674817,1770414901520,300.0,8.427e-05,2]
[404674818,1770414901569,1200.0,8.427e-05,2]
[404674821,1770414911934,428.2459279,8.427e-05,2]
[404674822,1770414922544,568.89349044,8.428e-05,2]
[404674823,1770414932786,172.68852775,8.427e-05,2]
[404674824,1770415021979,150.0,8.427e-05,2]
[404674825,1770415024010,300.0,8.427e-05,2]
[404674826,1770415042790,379.26232696,8.428e-05,2]
[404674827,1770415054609,9620.74767304,8.328e-05,2]
[404674828,1770415054638,10000.01,8.328e-05,2]
[404674829,1770415054667,10000.01,8.328e-05,2]
[404674830,1770415054695,10000.01,8.328e-05,2]
[404674831,1770415054723,10000.01,8.328e-05,2]
[404674832,1770415054751,10000.01,8.328e-05,2]
[404674833,1770415054779,10000.01,8.328e-05,2]
[404674834,1770415054807,10000.01,8.328e-05,2]
[404674835,1770415054835,10000.01,8.328e-05,2]
[404674836,1770415054861,5000.01,8.328e-05,2]
[404674837,1770415054886,5000.01,8.328e-05,2]
[404674838,1770415054912,5000.01,8.328e-05,2]
[404674839,1770415054937,5000.01,8.328e-05,2]
[404674840,1770415054962,5000.01,8.328e-05,2]
[404674841,1770415054987,5000.01,8.328e-05,2]
[404674842,1770415055012,5000.01,8.328e-05,2]
[404674843,1770415055036,5000.01,8.328e-05,2]
[404674844,1770415055060,5000.01,8.328e-05,2]
[404674845,1770415063563,-10000.01,8.328e-05,2]
[404674846,1770415063691,-10000.01,8.328e-05,2]
[404674847,1770415063813,-10000.01,8.328e-05,2]
[404674848,1770415063943,-10000.01,8.328e-05,2]
[404674849,1770415064075,-10000.01,8.328e-05,2]
[404674850,1770415064211,-10000.01,8.328e-05,2]
[404674851,1770415064320,-10000.01,8.328e-05,2]
[404674852,1770415064574,-10000.01,8.328e-05,2]
[404674853,1770415064781,-10000.01,8.328e-05,2]
[404674854,1770415081522,300.0,8.327e-05,2]
[404674857,1770415105575,6387.053989,8.178e-05,2]
[404674858,1770415141159,300.0,8.327e-05,2]
[404674859,1770415201172,1200.0,8.327e-05,2]
[404674860,1770415201804,150.0,8.327e-05,2]
[404674861,1770415204254,219.0,8.328e-05,2]
[404674862,1770415209221,300.0,8.327e-05,2]
[404674863,1770415262804,374.58631127,8.327e-05,2]
[404674864,1770415265242,500.0,8.327e-05,2]
[404674865,1770415265659,269.36969973,8.327e-05,2]
[404674866,1770415265686,230.63030027,8.327e-05,2]
[404674867,1770415265961,500.0,8.327e-05,2]
[404674868,1770415266276,500.0,8.327e-05,2]
[404674869,1770415266572,500.0,8.327e-05,2]
[404674870,1770415266852,500.0,8.327e-05,2]
[404674871,1770415266888,500.0,8.327e-05,2]
[404674872,1770415266934,500.0,8.327e-05,2]
[404674873,1770415266970,500.0,8.327e-05,2]
[404674874,1770415267009,500.0,8.327e-05,2]
[404674875,1770415267052,500.0,8.327e-05,2]
[404674876,1770415267095,500.0,8.327e-05,2]
[404674877,1770415267135,500.0,8.327e-05,2]
[404674878,1770415267170,500.0,8.327e-05,2]
[404674879,1770415267212,500.0,8.327e-05,2]
[404674880,1770415267251,500.0,8.327e-05,2]
[404674881,1770415267290,500.0,8.327e-05,2]
[404674882,1770415267326,500.0,8.327e-05,2]
[404674883,1770415267361,500.0,8.327e-05,2]
[404674884,1770415267410,515.50013136,8.327e-05,2]
[404674885,1770415267551,500.0,8.327e-05,2]
[404674886,1770415279347,253.87956837,8.327e-05,2]
[404674887,1770415279374,246.12043163,8.327e-05,2]
[404674888,1770415279409,500.0,8.327e-05,2]
[404674889,1770415279443,500.0,8.327e-05,2]
[404674890,1770415279477,500.0,8.327e-05,2]
[404674891,1770415279512,500.0,8.327e-05,2]
[404674892,1770415279549,500.0,8.327e-05,2]
[404674893,1770415279587,500.0,8.327e-05,2]
[404674894,1770415279623,500.0,8.327e-05,2]
[404674895,1770415279657,265.50013136,8.327e-05,2]
[404674896,1770415279694,500.0,8.327e-05,2]
[404674897,1770415279814,500.0,8.327e-05,2]
[404674898,1770415279851,500.0,8.327e-05,2]
[404674899,1770415293385,4488.38943701,8.162e-05,2]
[404674900,1770415293410,637.67156299,8.162e-05,2]
[404674901,1770415293466,447.89,8.162e-05,2]
[404674902,1770415313051,196.34070519,8.327e-05,2]
[404674903,1770415340126,150.0,8.301e-05,2]
[404674904,1770415341023,150.0,8.301e-05,2]
[404674905,1770415372005,8418.10773182,8.228e-05,2]
[404674906,1770415372032,10000.01,8.228e-05,2]
[404674907,1770415372058,10000.01,8.228e-05,2]
[404674908,1770415372084,10000.01,8.228e-05,2]
[404674909,1770415372111,10000.01,8.228e-05,2]
[404674910,1770415372136,5000.01,8.228e-05,2]
[404674911,1770415372162,10000.01,8.228e-05,2]
[404674912,1770415372186,5000.01,8.228e-05,2]
[404674913,1770415372212,10000.01,8.228e-05,2]
[404674914,1770415372236,5000.01,8.228e-05,2]
[404674915,1770415372263,5000.01,8.228e-05,2]
[404674916,1770415372285,5000.01,8.228e-05,2]
[404674917,1770415372312,5000.01,8.228e-05,2]
[404674918,1770415372338,5000.01,8.228e-05,2]
[404674919,1770415372361,5000.01,8.228e-05,2]
[404674920,1770415372384,5000.01,8.228e-05,2]
[404674921,1770415372410,10000.01,8.228e-05,2]
[404674922,1770415372436,10000.01,8.228e-05,2]
[404674923,1770415372462,10000.01,8.228e-05,2]
[404674924,1770415375043,-10000.01,8.228e-05,2]
[404674925,1770415375153,-10000.01,8.228e-05,2]
[404674926,1770415378989,-10000.01,8.228e-05,2]
[404674927,1770415379120,-10000.01,8.228e-05,2]
[404674928,1770415379228,-10000.01,8.228e-05,2]
[404674929,1770415379336,-10000.01,8.228e-05,2]
[404674930,1770415379454,-10000.01,8.228e-05,2]
[404674931,1770415379609,-10000.01,8.228e-05,2]
[404674932,1770415379718,-10000.01,8.228e-05,2]
[404674933,1770415379857,-10000.01,8.228e-05,2]
[404674934,1770415379966,-10000.01,8.228e-05,2]
[404674935,1770415380102,-10000.01,8.228e-05,2]
[404674936,1770415380238,-10000.01,8.228e-05,2]
[404674937,1770415380371,-10000.01,8.228e-05,2]
[404674938,1770415380471,-10000.01,8.228e-05,2]
[404674939,1770415380636,-10000.01,8.228e-05,2]
[404674940,1770415380767,-10000.01,8.228e-05,2]
[404674941,1770415381648,-300.0,8.227e-05,2]
[404674942,1770415381921,-150.0,8.227e-05,2]
[404674943,1770415382062,-4910.45172619,8.228e-05,2]
[404674944,1770415384652,1809.89957862,8.228e-05,2]
[404674945,1770415384687,3190.11042138,8.228e-05,2]
[404674946,1770415384953,1154.41270684,8.228e-05,2]
[404674947,1770415386090,-10000.01,8.228e-05,2]
[404674948,1770415386222,-10000.01,8.228e-05,2]
[404674949,1770415386365,-10000.01,8.228e-05,2]
[404674950,1770415386502,-10000.01,8.228e-05,2]
[404674951,1770415386656,-10000.01,8.228e-05,2]
[404674952,1770415386741,-10000.01,8.228e-05,2]
[404674953,1770415386865,-10000.01,8.228e-05,2]
[404674954,1770415387032,-10000.01,8.228e-05,2]
[404674955,1770415387144,-10000.01,8.228e-05,2]
[404674956,1770415387274,-10000.01,8.228e-05,2]
[404674957,1770415387391,-10000.01,8.228e-05,2]
[404674959,1770415405192,560.86288351,8.228e-05,2]
[404674960,1770415406341,300.0,8.227e-05,2]
[404674961,1770415419402,1462.27626715,8.228e-05,2]
[404674962,1770415422332,1337.759484,8.178e-05,2]
[404674963,1770415441194,184.6986585,8.227e-05,2]
[404674964,1770415441215,115.3013415,8.227e-05,2]
[404674965,1770415493361,301.54,8.2e-05,2]
[404674966,1770415501166,300.0,8.227e-05,2]
[404674967,1770415501310,1200.0,8.227e-05,2]
[404674968,1770415534835,974.85084476,8.228e-05,2]
[404674969,1770415538458,373.908589,8.228e-05,2]
[404674970,1770415538926,-1053.59543915,8.228e-05,2]
[404674971,1770415539027,-1427.53696266,8.228e-05,2]
[404674972,1770415539129,-337.99553486,8.228e-05,2]
[404674973,1770415539233,-531.31399237,8.228e-05,2]
[404674974,1770415539317,-293.47590332,8.228e-05,2]
[404674975,1770415559134,150.0,0.00035,120]
[404674976,1770415561186,300.0,8.227e-05,2]
[404674977,1770415561487,259.0,8.227e-05,2]
[404674978,1770415561909,150.0,8.227e-05,2]
[404674979,1770415563712,300.0,8.227e-05,2]
[404674980,1770415566951,150.0,8.201e-05,2]
[404674981,1770415567721,150.0,8.201e-05,2]
[404674982,1770415569619,353.80226528,8.227e-05,2]
[404674983,1770415583595,71.60695946,8.227e-05,2]
[404674984,1770415583621,428.39304054,8.227e-05,2]
[404674985,1770415583655,500.0,8.227e-05,2]
[404674986,1770415583689,500.0,8.227e-05,2]
[404674987,1770415583723,500.0,8.227e-05,2]
[404674988,1770415583759,500.0,8.227e-05,2]
[404674989,1770415583798,500.0,8.227e-05,2]
[404674990,1770415583895,500.0,8.227e-05,2]
[404674991,1770415583929,500.0,8.227e-05,2]
[404674992,1770415583996,500.0,8.227e-05,2]
[404674993,1770415584037,500.0,8.227e-05,2]
[404674994,1770415584077,71.61695946,8.227e-05,2]
[404674995,1770415584104,428.38304054,8.227e-05,2]
[404674996,1770415584140,500.0,8.227e-05,2]
[404674997,1770415584176,500.0,8.227e-05,2]
[404674998,1770415584211,200.31152995,8.227e-05,2]
[404674999,1770415584245,500.0,8.227e-05,2]
[404675000,1770415584282,500.0,8.227e-05,2]
[404675001,1770415584323,500.0,8.227e-05,2]
[404675002,1770415584357,500.0,8.227e-05,2]
[404675003,1770415584394,500.0,8.227e-05,2]
[404675004,1770415584432,500.0,8.227e-05,2]
[404675005,1770415584468,371.31542951,8.227e-05,2]
[404675006,1770415584492,128.68457049,8.227e-05,2]
[404675007,1770415584527,500.0,8.227e-05,2]
[404675008,1770415584563,500.0,8.227e-05,2]
[404675009,1770415584598,500.0,8.227e-05,2]
[404675010,1770415584633,500.0,8.227e-05,2]
[404675011,1770415584666,500.0,8.227e-05,2]
[404675012,1770415584700,500.0,8.227e-05,2]
[404675013,1770415584789,500.0,8.227e-05,2]
[404675014,1770415584826,500.0,8.227e-05,2]
[404675015,1770415584915,500.0,8.227e-05,2]
[404675016,1770415598682,371.32542951,8.227e-05,2]
[404675017,1770415598707,128.67457049,8.227e-05,2]
[404675018,1770415598741,500.0,8.227e-05,2]
[404675019,1770415598777,500.0,8.227e-05,2]
[404675020,1770415598812,500.0,8.227e-05,2]
[404675021,1770415598851,500.0,8.227e-05,2]
[404675022,1770415598884,500.0,8.227e-05,2]
[404675023,1770415599102,500.0,8.227e-05,2]
[404675024,1770415599139,500.0,8.227e-05,2]
[404675025,1770415599422,500.0,8.227e-05,2]
[404675026,1770415599489,500.0,8.227e-05,2]
[404675027,1770415621205,300.0,8.227e-05,2]
[404675028,1770415627735,71.33542951,8.227e-05,2]
[404675029,1770415627758,231.19713037,8.227e-05,2]
[404675030,1770415641210,500.0,8.227e-05,2]
[404675031,1770415641264,500.0,8.227e-05,2]
[404675032,1770415641572,500.0,8.227e-05,2]
[404675033,1770415641634,185.45557466,8.227e-05,2]
[404675034,1770415655078,649.90056318,8.228e-05,2]
[404675035,1770415668731,249.27239268,8.228e-05,2]
[404675036,1770415669361,2184.18433911,8.128e-05,2]
[404675037,1770415669388,5000.01,8.128e-05,2]
[404675038,1770415669415,5000.01,8.128e-05,2]
[404675039,1770415669439,5000.01,8.128e-05,2]
[404675040,1770415669462,5000.01,8.128e-05,2]
[404675041,1770415669485,5000.01,8.128e-05,2]
[404675042,1770415669509,5000.01,8.128e-05,2]
[404675043,1770415669533,5000.01,8.128e-05,2]
[404675044,1770415669557,5000.01,8.128e-05,2]
[404675045,1770415712353,247.66158569,8.127e-05,2]
[404675046,1770415712407,211.77279191,8.127e-05,2]
[404675047,1770415713950,500.0,8.127e-05,2]
[404675048,1770415714007,500.0,8.127e-05,2]
[404675049,1770415714066,500.0,8.127e-05,2]
[404675050,1770415714111,500.0,8.127e-05,2]
[404675051,1770415714167,470.03115299,8.127e-05,2]
[404675054,1770415741829,150.0,8.127e-05,2]
[404675055,1770415743107,300.0,8.127e-05,2]
[404675056,1770415756084,150.0,8.101e-05,2]
[404675057,1770415756440,150.0,8.101e-05,2]
[404675058,1770415801275,300.0,8.127e-05,2]
[404675059,1770415801310,1200.0,8.127e-05,2]
[404675060,1770415805147,218.0,8.128e-05,2]
[404675068,1770415831285,-7159.3026,8.128e-05,2]
[404675069,1770415831298,-1450.71310277,8.128e-05,2]
[404675070,1770415831345,-257.8752,8.128e-05,2]
[404675071,1770415831356,-412124.83652738,8.128e-05,2]
[404675072,1770415831367,-5049.89890697,8.128e-05,2]
[404675073,1770415831382,-362.20975999,8.128e-05,2]
[404675074,1770415831471,-4218.81727539,8.128e-05,2]
[404675078,1770415837368,-383.6689389,8.128e-05,2]
[404675079,1770415837427,-7134.4637301,8.128e-05,2]
[404675080,1770415837486,-371.35396291,8.128e-05,2]
[404675081,1770415837497,-1499942.93612265,8.128e-05,2]
[404675097,1770415839395,-919.39818052,8.128e-05,2]
[404675098,1770415839407,-1736.33370989,8.128e-05,2]
[404675099,1770415839418,-9590.83338269,8.128e-05,2]
[404675100,1770415839430,-21309.06284727,8.128e-05,2]
[404675101,1770415839585,-2350.16951357,8.128e-05,2]
[404675102,1770415839595,-424.87581462,8.128e-05,2]
[404675103,1770415839707,-1483028.98608527,8.128e-05,2]
[404675104,1770415839717,-200.0,8.156e-05,2]
[404675105,1770415839728,-433.26704212,8.156e-05,2]
[404675106,1770415839737,-166.18159512,8.156e-05,2]
[404675107,1770415839747,-500.0,8.219e-05,2]
[404675108,1770415839756,-500.0,8.219e-05,2]
[404675109,1770415839766,-179.81890227,8.219e-05,2]
[404675110,1770415839775,-4123.751,8.228e-05,2]
[404675111,1770415839784,-66094.5453,8.228e-05,2]
[404675112,1770415839793,-500.0,8.228e-05,2]
[404675113,1770415839802,-300.0,8.242e-05,2]
[404675114,1770415839811,-250.0,8.278e-05,2]
[404675115,1770415839820,-300.0,8.325e-05,2]
[404675116,1770415839829,-300.0,8.325e-05,2]
[404675117,1770415839838,-1000.0,8.327e-05,2]
[404675118,1770415839847,-250.0,8.337e-05,2]
[404675119,1770415839856,-9138.48,8.352e-05,2]
[404675120,1770415839866,-5448.59,8.4e-05,2]
[404675122,1770415839875,-1547.88460411,8.456e-05,2]
[404675124,1770415839884,-209.57,8.467e-05,2]
[404675126,1770415839893,-151.0,8.525e-05,2]
[404675128,1770415839903,-151.0,8.725e-05,2]
[404675130,1770415839912,-9999.99,8.725e-05,2]
[404675132,1770415839921,-299.99,8.725e-05,2]
[404675133,1770415839930,-9999.99,8.725e-05,2]
[404675134,1770415839939,-310.94,8.725e-05,2]
[404675135,1770415839947,-5274.08,8.725e-05,2]
[404675136,1770415839956,-9999.99,8.725e-05,2]
[404675137,1770415839965,-150.99,8.725e-05,2]
[404675138,1770415839975,-999.99,8.725e-05,2]
[404675139,1770415839983,-150.99,8.725e-05,2]
[404675140,1770415839993,-9999.99,8.725e-05,2]
[404675141,1770415840003,-166.66,8.823e-05,2]
[404675142,1770415840012,-255.0,8.94e-05,2]
[404675143,1770415840021,-1680.0,8.94e-05,2]
[404675144,1770415840030,-420.0,8.94e-05,2]
[404675145,1770415840039,-250.0,9.051e-05,2]
[404675146,1770415840048,-300.0,9.051e-05,2]
[404675147,1770415840057,-500.0,9.051e-05,2]
[404675149,1770415840066,-166.66,9.115e-05,2]
[404675151,1770415840075,-930.9,9.339e-05,2]
[404675153,1770415840085,-500.0,9.393e-05,2]
[404675155,1770415840094,-500.0,9.393e-05,2]
[404675157,1770415840103,-500.0,9.393e-05,2]
[404675159,1770415840112,-500.0,9.393e-05,2]
[404675161,1770415840120,-619.45163428,9.393e-05,2]
[404675163,1770415840129,-616.68206911,9.393e-05,2]
[404675165,1770415840138,-501.57483784,9.393e-05,2]
[404675167,1770415840147,-614.32879488,9.393e-05,2]
[404675169,1770415840155,-500.0,9.393e-05,2]
[404675171,1770415840164,-500.0,9.393e-05,2]
[404675173,1770415840173,-500.0,9.393e-05,2]
[404675174,1770415840182,-500.0,9.393e-05,2]
[404675175,1770415840191,-500.0,9.393e-05,2]
[404675176,1770415840200,-500.0,9.393e-05,2]
[404675177,1770415840209,-500.0,9.393e-05,2]
[404675178,1770415840218,-500.0,9.393e-05,2]
[404675179,1770415840232,-500.0,9.393e-05,2]
[404675180,1770415840241,-500.0,9.393e-05,2]
[404675181,1770415840250,-150.0,9.396e-05,2]
[404675182,1770415840259,-150.0,9.396e-05,2]
[404675183,1770415840269,-166.66,9.406e-05,2]
[404675184,1770415840278,-200.0,9.451e-05,2]
[404675185,1770415840288,-53650.80443445,9.539e-05,2]
[404675186,1770415840297,-4117.62,9.611e-05,2]
[404675187,1770415840306,-4117.62,9.628e-05,2]
[404675188,1770415840315,-4117.62,9.646e-05,2]
[404675189,1770415840324,-4117.62,9.664e-05,2]
[404675190,1770415840333,-500.0,9.667e-05,2]
[404675191,1770415840343,-19999.99,9.67e-05,2]
[404675192,1770415840352,-4117.62,9.681e-05,2]
[404675193,1770415840361,-166.66,9.697e-05,2]
[404675194,1770415840370,-4117.62,9.699e-05,2]
[404675195,1770415840380,-557.31,9.705e-05,2]
[404675196,1770415840390,-4117.62,9.717e-05,2]
[404675197,1770415840399,-4117.62,9.734e-05,2]
[404675198,1770415840408,-4117.62,9.752e-05,2]
[404675199,1770415840417,-4117.62,9.77e-05,2]
[404675200,1770415840428,-4117.62,9.787e-05,2]
[404675201,1770415840437,-4117.62,9.805e-05,2]
[404675202,1770415840446,-4117.62,9.823e-05,2]
[404675203,1770415840457,-433.0,9.834e-05,2]
[404675204,1770415840466,-587.0,9.834e-05,2]
[404675205,1770415840477,-2351.0,9.834e-05,2]
[404675206,1770415840486,-4117.62,9.841e-05,2]
[404675207,1770415840495,-4117.62,9.858e-05,2]
[404675208,1770415840504,-4117.62,9.876e-05,2]
[404675209,1770415840514,-4117.62,9.894e-05,2]
[404675210,1770415840523,-4117.62,9.911e-05,2]
[404675211,1770415840532,-4117.62,9.929e-05,2]
[404675212,1770415840541,-500.0,9.941e-05,2]
[404675213,1770415840550,-1000.0,9.941e-05,2]
[404675214,1770415840559,-1000.0,9.941e-05,2]
[404675215,1770415840568,-510.7037772,9.941e-05,2]
[404675216,1770415840577,-1000.0,9.941e-05,2]
[404675217,1770415840587,-1000.0,9.941e-05,2]
[404675218,1770415840596,-1000.0,9.941e-05,2]
[404675219,1770415840605,-1005.56624266,9.941e-05,2]
[404675220,1770415840614,-1000.0,9.941e-05,2]
[404675221,1770415840623,-908.34309823,9.941e-05,2]
[404675222,1770415840632,-1000.0,9.941e-05,2]
[404675223,1770415840641,-1000.0,9.941e-05,2]
[404675224,1770415840651,-1000.0,9.941e-05,2]
[404675225,1770415840660,-504.53493259,9.941e-05,2]
[404675226,1770415840669,-4117.62,9.947e-05,2]
[404675227,1770415840678,-166.66,9.988e-05,2]
[404675228,1770415840687,-300.12906603,0.0001,2]
[404675229,1770415840696,-151.0,0.0001,2]
[404675230,1770415840706,-151.0,0.0001,2]
[404675231,1770415840716,-151.0,0.0001,2]
[404675232,1770415840728,-151.0,0.0001,2]
[404675233,1770415840738,-151.0,0.0001,2]
[404675234,1770415840747,-151.0,0.0001,2]
[404675235,1770415840756,-151.0,0.0001,2]
[404675236,1770415840765,-151.0,0.0001,2]
[404675237,1770415840775,-151.0,0.0001,2]
[404675238,1770415840785,-151.0,0.0001,2]
[404675239,1770415840795,-151.0,0.0001,2]
[404675240,1770415840804,-151.0,0.0001,2]
[404675241,1770415840813,-151.0,0.0001,2]
[404675242,1770415840823,-151.0,0.0001,2]
[404675243,1770415840832,-151.0,0.0001,2]
[404675244,1770415840841,-151.0,0.0001,2]
[404675245,1770415840850,-151.0,0.0001,2]
[404675246,1770415840859,-151.0,0.0001,2]
[404675247,1770415840869,-151.0,0.0001,2]
[404675248,1770415840878,-151.0,0.0001,2]
[404675249,1770415840887,-151.0,0.0001,2]
[404675250,1770415840896,-151.0,0.0001,2]
[404675251,1770415840906,-151.0,0.0001,2]
[404675252,1770415840915,-151.0,0.0001,2]
[404675253,1770415840924,-151.0,0.0001,2]
[404675254,1770415840933,-151.0,0.0001,2]
[404675255,1770415840943,-151.0,0.0001,2]
[404675256,1770415840952,-151.0,0.0001,2]
[404675257,1770415840961,-151.0,0.0001,2]
[404675258,1770415840970,-151.0,0.0001,2]
[404675259,1770415840980,-151.0,0.0001,2]
[404675260,1770415840989,-151.0,0.0001,2]
[404675261,1770415840998,-220.6467782,0.0001,2]
[404675262,1770415841007,-1166.53667496,0.0001,2]
[404675263,1770415841016,-1166.53667496,0.0001,2]
[404675264,1770415841025,-1547.88460411,0.00010159,2]
[404675265,1770415841035,-500.0,0.00010215,2]
[404675266,1770415841045,-166.66,0.0001028,2]
[404675267,1770415841054,-500.0,0.00010373,2]
[404675268,1770415841063,-500.0,0.00010373,2]
[404675269,1770415841073,-500.0,0.00010373,2]
[404675270,1770415841083,-446.37537156,0.00010373,2]
[404675271,1770415841092,-502.96360645,0.00010489,2]
[404675272,1770415841102,-1000.0,0.00010489,2]
[404675273,1770415841112,-1500.0,0.00010489,2]
[404675274,1770415841126,-681.4550928,0.00010489,2]
[404675275,1770415841136,-1002.08630152,0.00010489,2]
[404675276,1770415841145,-1202.80837267,0.00010489,2]
[404675277,1770415841154,-1000.0,0.00010489,2]
[404675278,1770415841163,-1500.0,0.00010489,2]
[404675279,1770415841172,-1000.0,0.00010489,2]
[404675280,1770415841181,-180.43799611,0.00010489,2]
[404675281,1770415841190,-189.53,0.00010541,2]
[404675282,1770415841200,-250.0,0.0001074,2]
[404675283,1770415841209,-736.0,0.00010818,2]
[404675284,1770415841218,-370.0,0.00010818,2]
[404675285,1770415841230,-3292.0,0.00010818,2]
[404675286,1770415841239,-200.0,0.00010832,2]
[404675287,1770415841248,-1000.0,0.00010921,2]
[404675288,1770415841258,-1000.0,0.00010921,2]
[404675289,1770415841267,-1000.0,0.00010921,2]
[404675290,1770415841276,-150.0,0.00010959,2]
[404675291,1770415841286,-231.94764953,0.00010959,2]
[404675292,1770415841295,-1486.88398734,0.00011016,2]
[404675293,1770415841305,-2000.0,0.00011037,2]